Workbook

Sheet Zadání mzdy
B1: KALKULAČKA MEZD | K1: KONEC OBDOBÍ: | L1: 41372 | N1: NÁZEV SPOLEČNOSTI: | P1: ADVENTURE WORKS
B3: ID | C3: Jméno zaměstnance | D3: Odpracované prav. hodiny | E3: Počet hodin dovolené | F3: Počet hodin nemocenské | G3: Hodiny přesčas | H3: Přesčasová sazba | I3: Hrubá mzda | J3: Daně a sráž. | K3: Jiné odpočty: | L3: Čistá mzda | N3: Hodinová mzda | O3: Stav daně | P3: Federální přísp. | Q3: Státní daň | R3: Federální daň z příjmů | S3: Sociální pojištění | T3: Zdravotní pojištění | U3: Daně celkem | V3: Srážka pojištění | W3: Ostatní pravidelné srážky | X3: Celkem pravidelné srážky
B4: 1001 | C4: Tony Smith | D4: 50 | E4: 5 | F4: 1 | I4: =SUM(Zaměstnanci[[#This Row],[Odpracované prav. hodiny]:[Počet hodin nemocenské]])*Zaměstnanci[[#This Row],[Hodinová mzda]]+Zaměstnanci[[#This Row],[Hodiny přesčas]]*Zaměstnanci[[#This Row],[Přesčasová sazba]] -> 560 | J4: =Zaměstnanci[[#This Row],[Hrubá mzda]]*Zaměstnanci[[#This Row],[Daně celkem]] + Zaměstnanci[[#This Row],[Celkem pravidelné srážky]] -> 273.08 | K4: 20 | L4: =Zaměstnanci[[#This Row],[Hrubá mzda]]-Zaměstnanci[[#This Row],[Daně a sráž.]]-Zaměstnanci[[#This Row],[Jiné odpočty:]] -> 266.92 | N4: 10 | O4: 1 | P4: 4 | Q4: 0.023 | R4: 0.28 | S4: 0.063 | T4: 0.0145 | U4: =SUM(Zaměstnanci[[#This Row],[Státní daň]:[Zdravotní pojištění]]) -> 0.3805 | V4: 20 | W4: 40 | X4: =SUM(Zaměstnanci[[#This Row],[Srážka pojištění]:[Ostatní pravidelné srážky]]) -> 60
B5: 1002 | C5: David Jones | D5: 40 | I5: =SUM(Zaměstnanci[[#This Row],[Odpracované prav. hodiny]:[Počet hodin nemocenské]])*Zaměstnanci[[#This Row],[Hodinová mzda]]+Zaměstnanci[[#This Row],[Hodiny přesčas]]*Zaměstnanci[[#This Row],[Přesčasová sazba]] -> 320 | J5: =Zaměstnanci[[#This Row],[Hrubá mzda]]*Zaměstnanci[[#This Row],[Daně celkem]] + Zaměstnanci[[#This Row],[Celkem pravidelné srážky]] -> 131.76 | L5: =Zaměstnanci[[#This Row],[Hrubá mzda]]-Zaměstnanci[[#This Row],[Daně a sráž.]]-Zaměstnanci[[#This Row],[Jiné odpočty:]] -> 188.24 | N5: 8 | O5: 1 | P5: 1 | Q5: 0.023 | R5: 0.28 | S5: 0.063 | T5: 0.0145 | U5: =SUM(Zaměstnanci[[#This Row],[Státní daň]:[Zdravotní pojištění]]) -> 0.3805 | V5: 0 | W5: 10 | X5: =SUM(Zaměstnanci[[#This Row],[Srážka pojištění]:[Ostatní pravidelné srážky]]) -> 10
B6: 1003 | C6: Denise Smith | D6: 35 | E6: 3 | I6: =SUM(Zaměstnanci[[#This Row],[Odpracované prav. hodiny]:[Počet hodin nemocenské]])*Zaměstnanci[[#This Row],[Hodinová mzda]]+Zaměstnanci[[#This Row],[Hodiny přesčas]]*Zaměstnanci[[#This Row],[Přesčasová sazba]] -> 532 | J6: =Zaměstnanci[[#This Row],[Hrubá mzda]]*Zaměstnanci[[#This Row],[Daně celkem]] + Zaměstnanci[[#This Row],[Celkem pravidelné srážky]] -> 240.426 | L6: =Zaměstnanci[[#This Row],[Hrubá mzda]]-Zaměstnanci[[#This Row],[Daně a sráž.]]-Zaměstnanci[[#This Row],[Jiné odpočty:]] -> 291.574 | N6: 14 | O6: 1 | P6: 3 | Q6: 0.023 | R6: 0.28 | S6: 0.063 | T6: 0.0145 | U6: =SUM(Zaměstnanci[[#This Row],[Státní daň]:[Zdravotní pojištění]]) -> 0.3805 | V6: 18 | W6: 20 | X6: =SUM(Zaměstnanci[[#This Row],[Srážka pojištění]:[Ostatní pravidelné srážky]]) -> 38
B7: 1008 | C7: Sebastien Motte | D7: 50 | E7: 5 | F7: 1 | I7: =SUM(Zaměstnanci[[#This Row],[Odpracované prav. hodiny]:[Počet hodin nemocenské]])*Zaměstnanci[[#This Row],[Hodinová mzda]]+Zaměstnanci[[#This Row],[Hodiny přesčas]]*Zaměstnanci[[#This Row],[Přesčasová sazba]] -> 1120 | J7: =Zaměstnanci[[#This Row],[Hrubá mzda]]*Zaměstnanci[[#This Row],[Daně celkem]] + Zaměstnanci[[#This Row],[Celkem pravidelné srážky]] -> 441.16 | L7: =Zaměstnanci[[#This Row],[Hrubá mzda]]-Zaměstnanci[[#This Row],[Daně a sráž.]]-Zaměstnanci[[#This Row],[Jiné odpočty:]] -> 678.84 | N7: 20 | O7: 1 | P7: 0 | Q7: 0.023 | R7: 0.28 | S7: 0.063 | T7: 0.0145 | U7: =SUM(Zaměstnanci[[#This Row],[Státní daň]:[Zdravotní pojištění]]) -> 0.3805 | V7: 15 | X7: =SUM(Zaměstnanci[[#This Row],[Srážka pojištění]:[Ostatní pravidelné srážky]]) -> 15
B8: 1011 | C8: Isabelle Scemla | D8: 40 | G8: 2 | H8: 15 | I8: =SUM(Zaměstnanci[[#This Row],[Odpracované prav. hodiny]:[Počet hodin nemocenské]])*Zaměstnanci[[#This Row],[Hodinová mzda]]+Zaměstnanci[[#This Row],[Hodiny přesčas]]*Zaměstnanci[[#This Row],[Přesčasová sazba]] -> 430 | J8: =Zaměstnanci[[#This Row],[Hrubá mzda]]*Zaměstnanci[[#This Row],[Daně celkem]] + Zaměstnanci[[#This Row],[Celkem pravidelné srážky]] -> 223.615 | L8: =Zaměstnanci[[#This Row],[Hrubá mzda]]-Zaměstnanci[[#This Row],[Daně a sráž.]]-Zaměstnanci[[#This Row],[Jiné odpočty:]] -> 206.385 | N8: 10 | O8: 1 | P8: 0 | Q8: 0.023 | R8: 0.28 | S8: 0.063 | T8: 0.0145 | U8: =SUM(Zaměstnanci[[#This Row],[Státní daň]:[Zdravotní pojištění]]) -> 0.3805 | V8: 20 | W8: 40 | X8: =SUM(Zaměstnanci[[#This Row],[Srážka pojištění]:[Ostatní pravidelné srážky]]) -> 60
B9: 1012 | C9: David Bristol | D9: 40 | E9: 5 | F9: 1 | I9: =SUM(Zaměstnanci[[#This Row],[Odpracované prav. hodiny]:[Počet hodin nemocenské]])*Zaměstnanci[[#This Row],[Hodinová mzda]]+Zaměstnanci[[#This Row],[Hodiny přesčas]]*Zaměstnanci[[#This Row],[Přesčasová sazba]] -> 552 | J9: =Zaměstnanci[[#This Row],[Hrubá mzda]]*Zaměstnanci[[#This Row],[Daně celkem]] + Zaměstnanci[[#This Row],[Celkem pravidelné srážky]] -> 270.036 | L9: =Zaměstnanci[[#This Row],[Hrubá mzda]]-Zaměstnanci[[#This Row],[Daně a sráž.]]-Zaměstnanci[[#This Row],[Jiné odpočty:]] -> 281.964 | N9: 12 | O9: 1 | P9: 4 | Q9: 0.023 | R9: 0.28 | S9: 0.063 | T9: 0.0145 | U9: =SUM(Zaměstnanci[[#This Row],[Státní daň]:[Zdravotní pojištění]]) -> 0.3805 | V9: 20 | W9: 40 | X9: =SUM(Zaměstnanci[[#This Row],[Srážka pojištění]:[Ostatní pravidelné srážky]]) -> 60
B10: 1025 | C10: Anne Weiler | D10: 36 | F10: 2 | G10: 1 | H10: 18 | I10: =SUM(Zaměstnanci[[#This Row],[Odpracované prav. hodiny]:[Počet hodin nemocenské]])*Zaměstnanci[[#This Row],[Hodinová mzda]]+Zaměstnanci[[#This Row],[Hodiny přesčas]]*Zaměstnanci[[#This Row],[Přesčasová sazba]] -> 474 | J10: =Zaměstnanci[[#This Row],[Hrubá mzda]]*Zaměstnanci[[#This Row],[Daně celkem]] + Zaměstnanci[[#This Row],[Celkem pravidelné srážky]] -> 225.357 | K10: 25 | L10: =Zaměstnanci[[#This Row],[Hrubá mzda]]-Zaměstnanci[[#This Row],[Daně a sráž.]]-Zaměstnanci[[#This Row],[Jiné odpočty:]] -> 223.643 | N10: 12 | O10: 1 | P10: 2 | Q10: 0.023 | R10: 0.28 | S10: 0.063 | T10: 0.0145 | U10: =SUM(Zaměstnanci[[#This Row],[Státní daň]:[Zdravotní pojištění]]) -> 0.3805 | V10: 25 | W10: 20 | X10: =SUM(Zaměstnanci[[#This Row],[Srážka pojištění]:[Ostatní pravidelné srážky]]) -> 45
B11: 1032 | C11: Luka Abrus | D11: 40 | E11: 5 | F11: 1 | I11: =SUM(Zaměstnanci[[#This Row],[Odpracované prav. hodiny]:[Počet hodin nemocenské]])*Zaměstnanci[[#This Row],[Hodinová mzda]]+Zaměstnanci[[#This Row],[Hodiny přesčas]]*Zaměstnanci[[#This Row],[Přesčasová sazba]] -> 460 | J11: =Zaměstnanci[[#This Row],[Hrubá mzda]]*Zaměstnanci[[#This Row],[Daně celkem]] + Zaměstnanci[[#This Row],[Celkem pravidelné srážky]] -> 175.03 | K11: 50 | L11: =Zaměstnanci[[#This Row],[Hrubá mzda]]-Zaměstnanci[[#This Row],[Daně a sráž.]]-Zaměstnanci[[#This Row],[Jiné odpočty:]] -> 234.97 | N11: 10 | O11: 1 | P11: 3 | Q11: 0.023 | R11: 0.28 | S11: 0.063 | T11: 0.0145 | U11: =SUM(Zaměstnanci[[#This Row],[Státní daň]:[Zdravotní pojištění]]) -> 0.3805 | X11: =SUM(Zaměstnanci[[#This Row],[Srážka pojištění]:[Ostatní pravidelné srážky]]) -> 0
B12: 1049 | C12: David Ludwig | D12: 40 | E12: 1 | I12: =SUM(Zaměstnanci[[#This Row],[Odpracované prav. hodiny]:[Počet hodin nemocenské]])*Zaměstnanci[[#This Row],[Hodinová mzda]]+Zaměstnanci[[#This Row],[Hodiny přesčas]]*Zaměstnanci[[#This Row],[Přesčasová sazba]] -> 615 | J12: =Zaměstnanci[[#This Row],[Hrubá mzda]]*Zaměstnanci[[#This Row],[Daně celkem]] + Zaměstnanci[[#This Row],[Celkem pravidelné srážky]] -> 259.0075 | K12: 23 | L12: =Zaměstnanci[[#This Row],[Hrubá mzda]]-Zaměstnanci[[#This Row],[Daně a sráž.]]-Zaměstnanci[[#This Row],[Jiné odpočty:]] -> 332.9925 | N12: 15 | O12: 1 | P12: 2 | Q12: 0.023 | R12: 0.28 | S12: 0.063 | T12: 0.0145 | U12: =SUM(Zaměstnanci[[#This Row],[Státní daň]:[Zdravotní pojištění]]) -> 0.3805 | V12: 25 | X12: =SUM(Zaměstnanci[[#This Row],[Srážka pojištění]:[Ostatní pravidelné srážky]]) -> 25
B13: Celkem | C13: =SUBTOTAL(103,Zaměstnanci[Jméno zaměstnance]) -> 9 | D13: =SUBTOTAL(109,Zaměstnanci[Odpracované prav. hodiny]) -> 371 | E13: =SUBTOTAL(109,Zaměstnanci[Počet hodin dovolené]) -> 24 | F13: =SUBTOTAL(109,Zaměstnanci[Počet hodin nemocenské]) -> 6 | G13: =SUBTOTAL(109,Zaměstnanci[Hodiny přesčas]) -> 3 | I13: =SUBTOTAL(109,Zaměstnanci[Hrubá mzda]) -> 5063 | J13: =SUBTOTAL(109,Zaměstnanci[Daně a sráž.]) -> 2239.4715 | K13: =SUBTOTAL(109,Zaměstnanci[Jiné odpočty:]) -> 118 | L13: =SUBTOTAL(109,Zaměstnanci[Čistá mzda]) -> 2705.5285 | V13: =SUBTOTAL(109,Zaměstnanci[Srážka pojištění]) -> 143 | W13: =SUBTOTAL(109,Zaměstnanci[Ostatní pravidelné srážky]) -> 170 | X13: =SUBTOTAL(109,Zaměstnanci[Celkem pravidelné srážky]) -> 313

Sheet šablona_výplatnice (hidden)
C2: =NázevSpolečnosti -> ADVENTURE WORKS
C3: OBDOBÍ | D3: =KonecObdobí -> 41372 | G3: JMÉNO | H3: =IFERROR(INDEX(Zaměstnanci[Jméno zaměstnance],Výplatnice),"") -> Tony Smith | K3: ID ZAMĚSTNANCE | L3: =IFERROR(INDEX(Zaměstnanci[ID],Výplatnice),"") -> 1001
C4: Stav daně | E4: =IFERROR(INDEX(Zaměstnanci[Stav daně],Výplatnice),"") -> 1 | G4: Federální příspěvek (z W-4) | I4: =IFERROR(INDEX(Zaměstnanci[Federální přísp.],Výplatnice),"") -> 4 | K4: Odpracované hodiny | M4: =IFERROR(INDEX(Zaměstnanci[Odpracované prav. hodiny],Výplatnice),"") -> 50
C5: Hodinová sazba | E5: =IFERROR(INDEX(Zaměstnanci[Hodinová mzda],Výplatnice),"") -> 10 | G5: Přesčasová sazba | I5: =IFERROR(INDEX(Zaměstnanci[Přesčasová sazba],Výplatnice),"") -> 0 | K5: Počet hodin nemocenské | M5: =IFERROR(INDEX(Zaměstnanci[Počet hodin nemocenské],Výplatnice),"") -> 1
C6: Sociální pojištění | E6: =IFERROR(INDEX(Zaměstnanci[Sociální pojištění],Výplatnice) * INDEX(Zaměstnanci[Hrubá mzda],Výplatnice),"") -> 35.28 | G6: Federální daň z příjmů | I6: =IFERROR(INDEX(Zaměstnanci[Federální daň z příjmů],Výplatnice) * INDEX(Zaměstnanci[Hrubá mzda],Výplatnice),"") -> 156.8 | K6: Počet hodin dovolené | M6: =IFERROR(INDEX(Zaměstnanci[Počet hodin dovolené],Výplatnice),"") -> 5
C7: Zdravotní pojištění | E7: =IFERROR(INDEX(Zaměstnanci[Zdravotní pojištění],Výplatnice) * INDEX(Zaměstnanci[Hrubá mzda],Výplatnice),"") -> 8.12 | G7: Státní daň | I7: =IFERROR(INDEX(Zaměstnanci[Státní daň],Výplatnice) * INDEX(Zaměstnanci[Hrubá mzda],Výplatnice),"") -> 12.88 | K7: Hodiny přesčas | M7: =IFERROR(INDEX(Zaměstnanci[Hodiny přesčas],Výplatnice),"") -> 0
C8: Srážka pojištění | E8: =IFERROR(INDEX(Zaměstnanci[Srážka pojištění],Výplatnice),"") -> 20 | G8: Jiné pravidelné srážky | I8: =IFERROR(INDEX(Zaměstnanci[Ostatní pravidelné srážky],Výplatnice),"") -> 40 | K8: Hrubá mzda | M8: =IFERROR(INDEX(Zaměstnanci[Hrubá mzda],Výplatnice),"") -> 560
C9: Daně celkem | E9: =IFERROR(INDEX(Zaměstnanci[Daně a sráž.],Výplatnice),"") -> 273.08 | G9: Jiné srážky | I9: =IFERROR(INDEX(Zaměstnanci[Jiné odpočty:],Výplatnice),"") -> 20 | K9: Daně a odpočty celkem | M9: =IFERROR(INDEX(Zaměstnanci[Daně a sráž.],Výplatnice) + INDEX(Zaměstnanci[Jiné odpočty:],Výplatnice),"") -> 293.08
C10: Pravidelné srážky
K11: ČISTÁ MZDA | M11: =IFERROR(INDEX(Zaměstnanci[Čistá mzda],Výplatnice),"") -> 266.92
C14: =NázevSpolečnosti -> ADVENTURE WORKS
C15: OBDOBÍ | D15: =KonecObdobí -> 41372 | G15: JMÉNO | H15: =IFERROR(INDEX(Zaměstnanci[Jméno zaměstnance],Výplatnice),"") -> David Jones | K15: ID ZAMĚSTNANCE | L15: =IFERROR(INDEX(Zaměstnanci[ID],Výplatnice),"") -> 1002
C16: Stav daně | E16: =IFERROR(INDEX(Zaměstnanci[Stav daně],Výplatnice),"") -> 1 | G16: Federální příspěvek (z W-4) | I16: =IFERROR(INDEX(Zaměstnanci[Federální přísp.],Výplatnice),"") -> 1 | K16: Odpracované hodiny | M16: =IFERROR(INDEX(Zaměstnanci[Odpracované prav. hodiny],Výplatnice),"") -> 40
C17: Hodinová sazba | E17: =IFERROR(INDEX(Zaměstnanci[Hodinová mzda],Výplatnice),"") -> 8 | G17: Přesčasová sazba | I17: =IFERROR(INDEX(Zaměstnanci[Přesčasová sazba],Výplatnice),"") -> 0 | K17: Počet hodin nemocenské | M17: =IFERROR(INDEX(Zaměstnanci[Počet hodin nemocenské],Výplatnice),"") -> 0
C18: Sociální pojištění | E18: =IFERROR(INDEX(Zaměstnanci[Sociální pojištění],Výplatnice) * INDEX(Zaměstnanci[Hrubá mzda],Výplatnice),"") -> 20.16 | G18: Federální daň z příjmů | I18: =IFERROR(INDEX(Zaměstnanci[Federální daň z příjmů],Výplatnice) * INDEX(Zaměstnanci[Hrubá mzda],Výplatnice),"") -> 89.6 | K18: Počet hodin dovolené | M18: =IFERROR(INDEX(Zaměstnanci[Počet hodin dovolené],Výplatnice),"") -> 0
C19: Zdravotní pojištění | E19: =IFERROR(INDEX(Zaměstnanci[Zdravotní pojištění],Výplatnice) * INDEX(Zaměstnanci[Hrubá mzda],Výplatnice),"") -> 4.64 | G19: Státní daň | I19: =IFERROR(INDEX(Zaměstnanci[Státní daň],Výplatnice) * INDEX(Zaměstnanci[Hrubá mzda],Výplatnice),"") -> 7.36 | K19: Hodiny přesčas | M19: =IFERROR(INDEX(Zaměstnanci[Hodiny přesčas],Výplatnice),"") -> 0
C20: Srážka pojištění | E20: =IFERROR(INDEX(Zaměstnanci[Srážka pojištění],Výplatnice),"") -> 0 | G20: Jiné pravidelné srážky | I20: =IFERROR(INDEX(Zaměstnanci[Ostatní pravidelné srážky],Výplatnice),"") -> 10 | K20: Hrubá mzda | M20: =IFERROR(INDEX(Zaměstnanci[Hrubá mzda],Výplatnice),"") -> 320
C21: Daně celkem | E21: =IFERROR(INDEX(Zaměstnanci[Daně a sráž.],Výplatnice),"") -> 131.76 | G21: Jiné srážky | I21: =IFERROR(INDEX(Zaměstnanci[Jiné odpočty:],Výplatnice),"") -> 0 | K21: Daně a odpočty celkem | M21: =IFERROR(INDEX(Zaměstnanci[Daně a sráž.],Výplatnice) + INDEX(Zaměstnanci[Jiné odpočty:],Výplatnice),"") -> 131.76
C22: Pravidelné srážky
K23: ČISTÁ MZDA | M23: =IFERROR(INDEX(Zaměstnanci[Čistá mzda],Výplatnice),"") -> 188.24
C26: =NázevSpolečnosti -> ADVENTURE WORKS
C27: OBDOBÍ | D27: =KonecObdobí -> 41372 | G27: JMÉNO | H27: =IFERROR(INDEX(Zaměstnanci[Jméno zaměstnance],Výplatnice),"") -> Denise Smith | K27: ID ZAMĚSTNANCE | L27: =IFERROR(INDEX(Zaměstnanci[ID],Výplatnice),"") -> 1003
C28: Stav daně | E28: =IFERROR(INDEX(Zaměstnanci[Stav daně],Výplatnice),"") -> 1 | G28: Federální příspěvek (z W-4) | I28: =IFERROR(INDEX(Zaměstnanci[Federální přísp.],Výplatnice),"") -> 3 | K28: Odpracované hodiny | M28: =IFERROR(INDEX(Zaměstnanci[Odpracované prav. hodiny],Výplatnice),"") -> 35
C29: Hodinová sazba | E29: =IFERROR(INDEX(Zaměstnanci[Hodinová mzda],Výplatnice),"") -> 14 | G29: Přesčasová sazba | I29: =IFERROR(INDEX(Zaměstnanci[Přesčasová sazba],Výplatnice),"") -> 0 | K29: Počet hodin nemocenské | M29: =IFERROR(INDEX(Zaměstnanci[Počet hodin nemocenské],Výplatnice),"") -> 0
C30: Sociální pojištění | E30: =IFERROR(INDEX(Zaměstnanci[Sociální pojištění],Výplatnice) * INDEX(Zaměstnanci[Hrubá mzda],Výplatnice),"") -> 33.516 | G30: Federální daň z příjmů | I30: =IFERROR(INDEX(Zaměstnanci[Federální daň z příjmů],Výplatnice) * INDEX(Zaměstnanci[Hrubá mzda],Výplatnice),"") -> 148.96 | K30: Počet hodin dovolené | M30: =IFERROR(INDEX(Zaměstnanci[Počet hodin dovolené],Výplatnice),"") -> 3
C31: Zdravotní pojištění | E31: =IFERROR(INDEX(Zaměstnanci[Zdravotní pojištění],Výplatnice) * INDEX(Zaměstnanci[Hrubá mzda],Výplatnice),"") -> 7.714 | G31: Státní daň | I31: =IFERROR(INDEX(Zaměstnanci[Státní daň],Výplatnice) * INDEX(Zaměstnanci[Hrubá mzda],Výplatnice),"") -> 12.236 | K31: Hodiny přesčas | M31: =IFERROR(INDEX(Zaměstnanci[Hodiny přesčas],Výplatnice),"") -> 0
C32: Srážka pojištění | E32: =IFERROR(INDEX(Zaměstnanci[Srážka pojištění],Výplatnice),"") -> 18 | G32: Jiné pravidelné srážky | I32: =IFERROR(INDEX(Zaměstnanci[Ostatní pravidelné srážky],Výplatnice),"") -> 20 | K32: Hrubá mzda | M32: =IFERROR(INDEX(Zaměstnanci[Hrubá mzda],Výplatnice),"") -> 532
C33: Daně celkem | E33: =IFERROR(INDEX(Zaměstnanci[Daně a sráž.],Výplatnice),"") -> 240.426 | G33: Jiné srážky | I33: =IFERROR(INDEX(Zaměstnanci[Jiné odpočty:],Výplatnice),"") -> 0 | K33: Daně a odpočty celkem | M33: =IFERROR(INDEX(Zaměstnanci[Daně a sráž.],Výplatnice) + INDEX(Zaměstnanci[Jiné odpočty:],Výplatnice),"") -> 240.426
C34: Pravidelné srážky
K35: ČISTÁ MZDA | M35: =IFERROR(INDEX(Zaměstnanci[Čistá mzda],Výplatnice),"") -> 291.574
C38: =NázevSpolečnosti -> ADVENTURE WORKS
C39: OBDOBÍ | D39: =KonecObdobí -> 41372 | G39: JMÉNO | H39: =IFERROR(INDEX(Zaměstnanci[Jméno zaměstnance],Výplatnice),"") -> Sebastien Motte | K39: ID ZAMĚSTNANCE | L39: =IFERROR(INDEX(Zaměstnanci[ID],Výplatnice),"") -> 1008
C40: Stav daně | E40: =IFERROR(INDEX(Zaměstnanci[Stav daně],Výplatnice),"") -> 1 | G40: Federální příspěvek (z W-4) | I40: =IFERROR(INDEX(Zaměstnanci[Federální přísp.],Výplatnice),"") -> 0 | K40: Odpracované hodiny | M40: =IFERROR(INDEX(Zaměstnanci[Odpracované prav. hodiny],Výplatnice),"") -> 50
C41: Hodinová sazba | E41: =IFERROR(INDEX(Zaměstnanci[Hodinová mzda],Výplatnice),"") -> 20 | G41: Přesčasová sazba | I41: =IFERROR(INDEX(Zaměstnanci[Přesčasová sazba],Výplatnice),"") -> 0 | K41: Počet hodin nemocenské | M41: =IFERROR(INDEX(Zaměstnanci[Počet hodin nemocenské],Výplatnice),"") -> 1
C42: Sociální pojištění | E42: =IFERROR(INDEX(Zaměstnanci[Sociální pojištění],Výplatnice) * INDEX(Zaměstnanci[Hrubá mzda],Výplatnice),"") -> 70.56 | G42: Federální daň z příjmů | I42: =IFERROR(INDEX(Zaměstnanci[Federální daň z příjmů],Výplatnice) * INDEX(Zaměstnanci[Hrubá mzda],Výplatnice),"") -> 313.6 | K42: Počet hodin dovolené | M42: =IFERROR(INDEX(Zaměstnanci[Počet hodin dovolené],Výplatnice),"") -> 5
C43: Zdravotní pojištění | E43: =IFERROR(INDEX(Zaměstnanci[Zdravotní pojištění],Výplatnice) * INDEX(Zaměstnanci[Hrubá mzda],Výplatnice),"") -> 16.24 | G43: Státní daň | I43: =IFERROR(INDEX(Zaměstnanci[Státní daň],Výplatnice) * INDEX(Zaměstnanci[Hrubá mzda],Výplatnice),"") -> 25.76 | K43: Hodiny přesčas | M43: =IFERROR(INDEX(Zaměstnanci[Hodiny přesčas],Výplatnice),"") -> 0
C44: Srážka pojištění | E44: =IFERROR(INDEX(Zaměstnanci[Srážka pojištění],Výplatnice),"") -> 15 | G44: Jiné pravidelné srážky | I44: =IFERROR(INDEX(Zaměstnanci[Ostatní pravidelné srážky],Výplatnice),"") -> 0 | K44: Hrubá mzda | M44: =IFERROR(INDEX(Zaměstnanci[Hrubá mzda],Výplatnice),"") -> 1120
C45: Daně celkem | E45: =IFERROR(INDEX(Zaměstnanci[Daně a sráž.],Výplatnice),"") -> 441.16 | G45: Jiné srážky | I45: =IFERROR(INDEX(Zaměstnanci[Jiné odpočty:],Výplatnice),"") -> 0 | K45: Daně a odpočty celkem | M45: =IFERROR(INDEX(Zaměstnanci[Daně a sráž.],Výplatnice) + INDEX(Zaměstnanci[Jiné odpočty:],Výplatnice),"") -> 441.16
C46: Pravidelné srážky
K47: ČISTÁ MZDA | M47: =IFERROR(INDEX(Zaměstnanci[Čistá mzda],Výplatnice),"") -> 678.84
